Cogmind - Beta 16 @@@ ROGUE MODE // 2025.11.02 @ 10:38:16 Player: Olafz Result: Destroyed by X-67 Chaingunner with Minigun Performance ------------- Evolutions (4) 2000 Regions Visited (6) 1200 Robots Destroyed (29) 145 Value Destroyed (1241) 1241 Prototype IDs (14) 280 Alien Tech Used (0) 0 Bonus (800) 800 TOTAL SCORE: 5666 Bonus ------- Registered with UFD 300 Met Optimus in HQ 500 Cogmind --------- Core Integrity 0/850 Matter 255/300 Energy 59/100 System Corruption 2% Temperature Cool (0) Movement Flying (40) Location -6/Factory Parts ------- > --- POWER (1) -------- (None) > --- PROPULSION (4) --- Improved Gravmag System Biomechanical Wings > --- UTILITY (7) ------ Advanced Weight Redist. System Advanced Sensor Array (fused) Improved Terrain Scanner Improved Targeting Computer Improved Targeting Computer Graphene Brace > --- WEAPON (3) ------- (None) > --- INVENTORY (5) ---- Advanced Melee Analysis Suite Advanced ECM Suite Cloaking Device Gauss Rifle Flak Gun Peak State ------------ > --- POWER ------------ Enhanced Nuclear Core > --- PROPULSION ------- Aluminum Leg Carbon-fiber Leg Carbon-fiber Leg Improved Carbon-fiber Leg > --- UTILITY ---------- Medium Storage Unit Structural Scanner Advanced Sensor Array Experimental Signal Interpreter Improved Targeting Computer Kinecellerator A0-MCA's Component Scanner > --- WEAPON ----------- Heavy Assault Rifle Flak Gun Heavy Machine Gun > --- INVENTORY -------- Improved Ion Engine Enhanced Nuclear Core Micro Nuclear Core Wheel Small Storage Unit Sensor Array Advanced Sensor Array Surveybot 17 Chip Cloaking Device [Rating: 60] Favorites ----------- Power Improved Ion Engine Engine Improved Ion Engine Power Core Enhanced Nuclear Core Propulsion Aluminum Leg Leg Aluminum Leg Wheel Wheel Hover Unit Improved Gravmag System Flight Unit Biomechanical Wings Utility Medium Storage Unit Device Structural Scanner Storage Medium Storage Unit Processor Experimental Signal Interpreter Weapon Heavy Assault Rifle Energy Gun Medium Laser Energy Cannon Heavy Plasma Cannon Ballistic Gun Heavy Assault Rifle Impact Weapon Power Maul Build | -11 -10 -9 -9 -9 -9 -6 ------- Run | Yrd Mat Mat Sto Rec Scr Fac Slots Evolved 8 | . . 2 . . . 6 Power . | . . . . . . . Propulsion 2 | . . . . . . 2 Utility 5 | . . 2 . . . 3 Weapon 1 | . . . . . . 1 Parts Attached 52 | 5 3 1 6 . 5 32 Power 7 | 1 . 1 1 . . 4 Engine 4 | 1 . 1 1 . . 1 Core 3 | . . . . . . 3 Reactor . | . . . . . . . Propulsion 16 | 2 . . 1 . 3 10 Treads . | . . . . . . . Leg 11 | 2 . . 1 . 1 7 Wheel 3 | . . . . . 2 1 Hover 1 | . . . . . . 1 Flight 1 | . . . . . . 1 Utility 17 | 1 2 . 1 . 2 11 Device 9 | . 1 . 1 . 1 6 Storage 2 | 1 1 . . . . . Processor 6 | . . . . . 1 5 Hackware . | . . . . . . . Protection . | . . . . . . . Artifact . | . . . . . . . Weapon 12 | 1 1 . 3 . . 7 Energy Gun 2 | . 1 . 1 . . . Energy Cannon 2 | . . . . . . 2 Ballistic Gun 7 | 1 . . 2 . . 4 Ballistic Cannon . | . . . . . . . Launcher . | . . . . . . . Special Weapon . | . . . . . . . Impact Weapon 1 | . . . . . . 1 Slashing Weapon . | . . . . . . . Piercing Weapon . | . . . . . . . Special Melee Weapon . | . . . . . . . Unidentified Prototypes 1 | . . . . . . 1 Parts Lost 26 | . . . 1 . . 25 Power 4 | . . . . . . 4 Propulsion 12 | . . . . . . 12 Utility 5 | . . . . . . 5 Weapon 5 | . . . 1 . . 4 Highest Loss Streak 8 | . . . 1 . . 8 To Critical Strikes . | . . . . . . . Average Backups 9 | 3 7 8 9 10 9 8 Power 2 | . 1 1 2 3 3 2 Propulsion 3 | 1 4 5 5 6 4 1 Utility 2 | . . 1 1 1 1 4 Weapon . | 1 1 1 . . . . Tool/Special . | . . . . . . . Unused Backups 12 | . . . 2 . 2 8 Power 3 | . . . 2 . . 1 Propulsion 2 | . . . . . 2 . Utility 4 | . . . . . . 4 Weapon 3 | . . . . . . 3 Tool/Special . | . . . . . . . Average Slot Usage (%) 90 | . 86 77 86 88 98 83 Engine 8 | . 14 11 11 11 11 3 Leg 20 | . 28 22 22 22 20 18 Device 20 | . 7 11 20 22 24 17 Storage 9 | . 14 11 11 11 11 5 Processor 9 | . . . . . 7 18 Energy Gun 2 | . 8 11 9 . . . Ballistic Gun 16 | . 14 11 12 22 22 10 Peak Build Rating 60 | 5 7 8 12 12 21 60 Average Rating 25 | 4 6 7 10 12 17 46 On Entrance 9 | . 5 7 8 12 12 21 Avg Prop Armor Cover (%) 8 | . . . . . . 8 Naked Turns . | . . . . . . . Heaviest Build 43 | 11 19 21 25 25 26 43 Greatest Support 58 | 20 20 20 20 20 20 58 Greatest Overweight (x) 3 | . . 1 1 1 1 3 Average Overweight (x) . | . . . 1 1 1 . Largest Inventory Capacity 10 | 8 10 10 10 10 10 10 Average Capacity 9 | 7 8 10 10 10 10 9 Most Carried 10 | 7 8 9 10 10 10 10 Average Carried 9 | 3 6 8 9 10 9 8 Final Capacity 10 | 8 10 10 10 10 10 5 Final Carried 10 | 7 8 9 10 10 10 5 Class Distribution -------------------- 27% | Skirmisher 26% | Mutant 24% | Scavenger-Mutant 20% | Scavenger-Skirmisher Dominant Class ---------------- Mutant | -10/Materials Mutant | -9/Materials Mutant | -9/Storage Scavenger-Mutant | -9/Recycling Skirmisher | -9/Scraptown Scavenger-Skirmisher | -6/Factory Resources | -11 -10 -9 -9 -9 -9 -6 ----------- Run | Yrd Mat Mat Sto Rec Scr Fac Matter Collected 932 | 229 30 34 64 . 73 502 Remotely . | . . . . . . . Salvage Created 1328 | . 30 128 324 . . 846 Parts 65 | . 3 7 18 . . 37 Haulers Intercepted 1 | . . . 1 . . . Recyclers Shooed 2 | . . . 1 . . 1 Parts Field Recycled . | . . . . . . . Retrieved Matter . | . . . . . . . Parts Self-Destructed . | . . . . . . . Prevented . | . . . . . . . Parts Restored . | . . . . . . . Kills | -11 -10 -9 -9 -9 -9 -6 ------- Run | Yrd Mat Mat Sto Rec Scr Fac Combat Hostiles Destroyed 26 | . 1 3 5 . . 17 Melee 3 | . . . . . . 3 Guns 17 | . 1 2 5 . . 9 Cannons 3 | . . . . . . 3 Classes Destroyed 7 | . 1 1 2 . . 3 Hauler 1 | . . . 1 . . . Watcher 2 | . . . 1 . . 1 Swarmer 3 | . . . . . . 3 Grunt 13 | . 1 2 1 . . 9 Sentry 8 | . . 1 4 . . 3 Hunter 1 | . . . . . . 1 Heavy 1 | . . . . . . 1 Best Kill Streak 6 | . 1 3 2 . . 6 Combat Bots Only 6 | . 1 3 2 . . 6 Max Kills in Single Turn 1 | . 1 1 1 . . 1 Gunslinging . | . . . . . . . Exploded . | . . . . . . . Melee 1 | . . . . . . 1 Uniques/NPCs Destroyed . | . . . . . . . Combat | -11 -10 -9 -9 -9 -9 -6 -------- Run | Yrd Mat Mat Sto Rec Scr Fac Hostile Shots Fired 458 | . 3 15 33 . . 407 Missed 194 | . 1 5 8 . . 180 Hits 264 | . 2 10 25 . . 227 Projectile 264 | . 2 10 25 . . 227 AOE 1 | . . . . . . 1 Critical Strikes 8 | . . . 3 . . 5 Damage Taken 4066 | . 23 122 356 . . 3565 Core 884 | . . . 33 . . 851 Absorbed by Shields 52 | . . . . . . 52 Core Remaining (%) 97 | 100 100 . . . 91 . Volleys Fired 80 | . 3 10 28 . . 39 Largest 3 | . 2 2 2 . . 3 Hottest 180 | . 70 70 73 . . 180 Shots Fired 175 | . 6 20 56 . . 93 Gun 148 | . 6 20 56 . . 66 Cannon 27 | . . . . . . 27 Launcher . | . . . . . . . Special . | . . . . . . . Kinetic 107 | . 3 10 28 . . 66 Thermal 68 | . 3 10 28 . . 27 Explosive . | . . . . . . . Electromagnetic . | . . . . . . . Robot Hit Streak 16 | . 1 6 16 . . 15 Robot Miss Streak 5 | . 2 2 3 . . 5 Penetration Max . | . . . . . . . Secondary Targets 5 | . . 1 . . . 4 Max Gunslinging Chain 1 | . . 1 . . . 1 Shots Hit Robots 142 | . 2 15 39 . . 86 Core Hits 64 | . 2 5 13 . . 44 Critical Kills . | . . . . . . . Critical Parts Destroyed 8 | . . . 1 . . 7 Critical Strikes 14 | . . 1 5 . . 8 Burn 5 | . . 1 4 . . . Destroy 3 | . . . 1 . . 2 Smash 6 | . . . . . . 6 Melee Attacks 21 | . . . . . . 21 Impact 21 | . . . . . . 21 Slashing . | . . . . . . . Piercing . | . . . . . . . Sneak Attacks . | . . . . . . . Combat Hostiles . | . . . . . . . Follow-up Attacks . | . . . . . . . Damage Inflicted 3037 | . 18 158 485 . . 2376 Guns 1654 | . 18 158 485 . . 993 Cannons 763 | . . . . . . 763 Explosions . | . . . . . . . Melee 620 | . . . . . . 620 Ramming . | . . . . . . . Kinetic 1303 | . 6 57 247 . . 993 Thermal 1114 | . 12 101 238 . . 763 Explosive . | . . . . . . . Electromagnetic . | . . . . . . . Impact 620 | . . . . . . 620 Slashing . | . . . . . . . Piercing . | . . . . . . . Highest Corruption 2 | . . . . . . 2 Average Corruption 1 | . . . . . . 1 Corruption Purged . | . . . . . . . Corruption Blocked . | . . . . . . . Effects 5 | . . . . . . 5 Message Errors 1 | . . . . . . 1 Matter Fused 1 | . . . . . . 1 Parts Fused 1 | . . . . . . 1 Data Loss (major) 1 | . . . . . . 1 Weapon Failures 1 | . . . . . . 1 Overload Shots . | . . . . . . . Overflow Damage 361 | . . . . . . 361 Projectiles . | . . . . . . . Explosions . | . . . . . . . Melee 361 | . . . . . . 361 Knockbacks 3 | . . . . . . 3 Impact 2 | . . . . . . 2 Kinetic . | . . . . . . . Secondary 1 | . . . . . . 1 Self-Inflicted Damage . | . . . . . . . Shots . | . . . . . . . Rammed . | . . . . . . . Targets Rammed . | . . . . . . . Kicked . | . . . . . . . Crushed . | . . . . . . . Highest Temperature 381 | . 52 20 33 . . 381 Average Temperature 97 | . 24 8 10 . . 144 Received Heat Transfer 1077 | . 12 60 183 . . 822 Siege Activations . | . . . . . . . Martial Activations . | . . . . . . . Shielding Activations . | . . . . . . . Robots Disrupted . | . . . . . . . Combat Hostiles . | . . . . . . . Robots Corrupted 2 | . . . . . . 2 Combat Hostiles 2 | . . . . . . 2 Parts Fried 1 | . . . . . . 1 Impact Corruptions 10 | . . . . . . 10 Robots Melted 1 | . . 1 . . . . Combat Hostiles 1 | . . 1 . . . . Parts Melted 8 | . . 4 3 . . 1 Heat Transferred 2606 | . 37 370 999 . . 1200 Parts Sabotaged . | . . . . . . . Parts Stolen . | . . . . . . . Parts Stripped . | . . . . . . . Power Chain Reactions . | . . . . . . . Alert | -11 -10 -9 -9 -9 -9 -6 ------- Run | Yrd Mat Mat Sto Rec Scr Fac Maximum Alert Level 1 | . . . . . . 1 Low Security (%) 96 | 100 100 100 100 100 . 94 Level 1 3 | . . . . . . 5 Level 2 . | . . . . . . . Level 3 . | . . . . . . . Level 4 . | . . . . . . . Level 5 . | . . . . . . . High Security . | . . . . . . . Max Security . | . . . . . . . Peak Influence 220 | . 10 100 52 13 . 220 Initial 29 | . . . 29 13 . . Average 45 | . 2 53 13 4 . 68 Influence Increases 985 | . 20 110 209 . . 646 Destroy 0b10 Robot/C 520 | . 20 60 100 . . 340 Destroy 0b10 Robot/NC 15 | . . . 10 . . 5 Destroy Leader 166 | . . 20 54 . . 92 Successful Hack 24 | . . . . . . 24 Select Force Hacks 60 | . . 30 30 . . . Destroy Structure 5 | . . . . . . 5 Lose Combat Pursuer 195 | . . . 15 . . 180 Influence Decreases 985 | . 20 40 245 34 . 646 Entered New Map 62 | . . . 41 21 . . Time Decay 573 | . 20 40 204 13 . 296 Search Patrol Dispatched 100 | . . . . . . 100 Lost Part 250 | . . . . . . 250 Squads Dispatched 15 | . . 1 2 . . 12 Investigation 5 | . . 1 1 . . 3 Extermination 3 | . . . . . . 3 Reinforcement 4 | . . . 1 . . 3 Assault . | . . . . . . . Garrison 3 | . . . . . . 3 Intercept . | . . . . . . . Searches Triggered 1 | . . . . . . 1 Construction Impeded . | . . . . . . . Haulers Reinforced . | . . . . . . . Active Scanning Responses . | . . . . . . . Cargo Convoy Interrupts . | . . . . . . . Stealth | -11 -10 -9 -9 -9 -9 -6 --------- Run | Yrd Mat Mat Sto Rec Scr Fac Distress Signals 2 | . . . 1 . . 1 Communications Jammed . | . . . . . . . Distress Signals . | . . . . . . . Times Spotted 47 | . 1 3 8 . . 35 Peak Tracking Total 8 | . 1 3 2 . . 8 Tactical Retreats 9 | . . . 1 . . 8 Traps | -11 -10 -9 -9 -9 -9 -6 ------- Run | Yrd Mat Mat Sto Rec Scr Fac Traps Triggered 3 | . . . . . . 3 Indirectly . | . . . . . . . Trap Hack Attempts . | . . . . . . . Triggered . | . . . . . . . Disarmed . | . . . . . . . Reprogrammed . | . . . . . . . Reused . | . . . . . . . Traps Extracted . | . . . . . . . Installed . | . . . . . . . Triggered . | . . . . . . . Machines | -11 -10 -9 -9 -9 -9 -6 ---------- Run | Yrd Mat Mat Sto Rec Scr Fac Machines Disabled . | . . . . . . . Max in Single Turn . | . . . . . . . Machines Repaired . | . . . . . . . Machines Dismantled . | . . . . . . . Machines Sabotaged . | . . . . . . . Overloaded Fab Kills . | . . . . . . . Hacking | -11 -10 -9 -9 -9 -9 -6 --------- Run | Yrd Mat Mat Sto Rec Scr Fac Machines Accessed 18 | . 1 3 3 . 6 5 Terminals 5 | . 1 1 2 . . 1 Fabricators . | . . . . . . . Repair Stations 2 | . . . . . . 2 Recycling Units 4 | . . 1 1 . . 2 Scanalyzers 1 | . . 1 . . . . Garrison Access . | . . . . . . . Total Hacks 71 | . 1 3 7 . 50 10 Successful 59 | . 1 3 2 . 50 3 Failed 12 | . . . 5 . . 7 Catastrophic 2 | . . . 1 . . 1 Database Lockouts . | . . . . . . . Manual 14 | . . 1 8 . . 5 Terminals 8 | . 1 1 5 . . 1 Fabricators . | . . . . . . . Repair Stations 5 | . . . . . . 5 Recycling Units 7 | . . 1 2 . . 4 Scanalyzers 1 | . . 1 . . . . Garrison Access . | . . . . . . . Terminal Hacks 52 | . 1 1 . . 50 . Record 49 | . . . . . 49 . Emergency Access Points 1 | . . 1 . . . . Locate Traps 1 | . 1 . . . . . Proto ID Catalog 1 | . . . . . 1 . Fabricator Hacks . | . . . . . . . Repair Station Hacks 1 | . . . . . . 1 Scan Component 1 | . . . . . . 1 Recycling Unit Hacks . | . . . . . . . Scanalyzer 1 | . . 1 . . . . Retrieve Study 1 | . . 1 . . . . Garrison Access Hacks . | . . . . . . . Unauthorized Hacks 5 | . . 1 2 . . 2 Terminals 1 | . . . 1 . . . Botnet 1 | . . . 1 . . . Fabricators . | . . . . . . . Repair Stations . | . . . . . . . Recycling Units 4 | . . 1 1 . . 2 Tunnel 2 | . . 1 1 . . . Fedlink 2 | . . . . . . 2 Scanalyzers . | . . . . . . . Garrison Access . | . . . . . . . Data Cores Recovered . | . . . . . . . Used . | . . . . . . . Hacking Detections 8 | . . . 4 . . 4 Full Trace Events 2 | . . . 1 . . 1 Feedback Events . | . . . . . . . Feedback Blocked . | . . . . . . . Robot Schematics Acquired . | . . . . . . . Robots Built . | . . . . . . . Authchips . | . . . . . . . Time . | . . . . . . . Total Robot Build Rating . | . . . . . . . Part Schematics Acquired . | . . . . . . . Parts Built . | . . . . . . . Authchips . | . . . . . . . Time . | . . . . . . . Total Part Build Rating . | . . . . . . . Part Studies Acquired 1 | . . 1 . . . . Parts Repaired . | . . . . . . . Time . | . . . . . . . Parts Recycled . | . . . . . . . Recycled Matter . | . . . . . . . Retrieved Matter . | . . . . . . . Retrieved Components . | . . . . . . . Parts Scanalyzed . | . . . . . . . Part Schematics Acquired . | . . . . . . . Parts Damaged . | . . . . . . . Bothacking | -11 -10 -9 -9 -9 -9 -6 ------------ Run | Yrd Mat Mat Sto Rec Scr Fac Used RIF Installer . | . . . . . . . Robots Hacked . | . . . . . . . Non-combat . | . . . . . . . Combat . | . . . . . . . Robot Hacks Applied . | . . . . . . . Relay Couplers Released . | . . . . . . . Fabnet Peak Effective % . | . . . . . . . Robots Rewired . | . . . . . . . Allies Hacked . | . . . . . . . Hacks Repelled . | . . . . . . . Allies | -11 -10 -9 -9 -9 -9 -6 -------- Run | Yrd Mat Mat Sto Rec Scr Fac Total Allies . | . . . . . . . Largest Group . | . . . . . . . Highest-Rated Group . | . . . . . . . Highest-Rated Ally . | . . . . . . . Total Orders . | . . . . . . . Ally Attacks . | . . . . . . . Total Damage . | . . . . . . . Kills . | . . . . . . . Allies Corrupted . | . . . . . . . Allies Melted . | . . . . . . . Intel | -11 -10 -9 -9 -9 -9 -6 ------- Run | Yrd Mat Mat Sto Rec Scr Fac Active Infowar (turns) 3889 | . . . 638 73 1829 1349 Optics 214 | . . . . . . 214 Sensors 2948 | . . . . . 1635 1313 IFF 609 | . . . . . . 609 Terrain 47 | . . . . . . 47 Structural 3334 | . . . 638 73 1829 794 Robot Analysis Total . | . . . . . . . Derelict Logs Recovered . | . . . . . . . Drone Launches . | . . . . . . . Drone Recoveries . | . . . . . . . Exploration | -11 -10 -9 -9 -9 -9 -6 ------------- Run | Yrd Mat Mat Sto Rec Scr Fac Turns Passed 4275 | 68 97 102 726 73 1829 1380 Spaces Moved 2344 | 44 66 51 302 39 992 850 Core 66 | 4 . . . . . 62 Treads . | . . . . . . . Legs 2112 | 40 66 51 302 39 912 702 Wheels 102 | . . . . . 80 22 Hover . | . . . . . . . Flight 64 | . . . . . . 64 Fastest Speed 40 | 50 120 120 190 190 95 40 Average Speed 159 | 113 120 144 190 190 182 126 Slowest Speed 260 | 120 120 190 190 190 190 260 Overloaded Moves . | . . . . . . . Propulsion Burnouts . | . . . . . . . Robots Hopped . | . . . . . . . Potential Cave-ins . | . . . . . . . Cave-ins Triggered . | . . . . . . . Exploration Rate (%) 25 | 3 19 5 44 12 64 33 Regions Visited 6 Branch Regions 3 Pre-discovered Areas 8 | . . 1 1 . 5 1 Known Exits Taken 1 | . . . . . 1 . Unknown Exits Taken 5 | 1 1 1 1 1 . . Scrap Searched 4 | . . . . . 4 . Spaces Dug 2 | . . . . . . 2 Terrain Destroyed 5 | . . . . . . 5 Melee 2 | . . . . . . 2 Projectile 3 | . . . . . . 3 AOE . | . . . . . . . Terrain Rammed . | . . . . . . . Walls Destroyed . | . . . . . . . Machines Disabled . | . . . . . . . Actions | -11 -10 -9 -9 -9 -9 -6 --------- Run | Yrd Mat Mat Sto Rec Scr Fac Total 2685 | 59 77 61 405 38 1016 1029 Wait 121 | 4 5 . 62 . 2 48 Move 2338 | 43 65 50 301 38 991 850 Hop . | . . . . . . . Pick Up 30 | 7 1 . 3 . 7 12 Fast Attach 33 | 5 1 . 2 . 3 22 Attach 16 | . 1 . 1 . 3 11 Detach 4 | . . . . . 1 3 Swap 7 | . 1 1 3 . . 2 Drop 28 | . . . 5 . 9 14 Fire 80 | . 3 10 28 . . 39 Melee 21 | . . . . . . 21 Ram . | . . . . . . . Kick . | . . . . . . . Crush . | . . . . . . . Escape Stasis 7 | . . . . . . 7 Rewire . | . . . . . . . Trap . | . . . . . . . Miscellaneous . | . . . . . . . Route ------- -11/Scrapyard -10/Materials -9/Materials -9/Storage -9/Recycling -9/Scraptown (discovered 2 exits: *Fac x2) -6/Factory (discovered 5 exits: Fac x3 / Low x2) History --------- Turn | Location | Event 46 | -11/Scrapyard | Discovered new exit (range 16) 69 | -11/Scrapyard | Entered Materials 163 | -10/Materials | Discovered new exit (range 3) 166 | -10/Materials | Entered another Materials area 166 | -9/Materials | Evolved 2 slots: Utility x2 196 | -9/Materials | Discovered new exit (range 11) 268 | -9/Materials | Entered Storage 312 | -9/Storage | Build established: Mutant 987 | -9/Storage | Used back door to open Recycling access 987 | -9/Storage | Discovered new exit (range 5) 994 | -9/Storage | Entered Recycling 1019 | -9/Recycling | Scanned before Scraplab entrance 1040 | -9/Recycling | Discovered new exit (range 11) 1046 | -9/Recycling | Entered Scraplab 1067 | -9/Recycling | Entered Scraptown 1185 | -9/Scraptown | Heard Great Nut preacher, LISTEN AND RECITE! 1190 | -9/Scraptown | Build established: Scavenger-Mutant 1335 | -9/Scraptown | Visited Spacefarers 1439 | -9/Scraptown | Visited Symbiants 1476 | -9/Scraptown | Visited Assassins FH 1491 | -9/Scraptown | Visited TADAMA 1548 | -9/Scraptown | Visited UFD Registry 1548 | -9/Scraptown | Registered with UFD as "Carbontorch" 1590 | -9/Scraptown | Visited Chapter 10 1622 | -9/Scraptown | Visited Science Guys 1686 | -9/Scraptown | Visited Infowarlord's Domain 1700 | -9/Scraptown | Found Exp. Signal Interpreter 1941 | -9/Scraptown | Visited A0-MCA Data Center 1954 | -9/Scraptown | Given a B rating by A0-MCA 1961 | -9/Scraptown | Found A0-MCA's Component Scanner 1998 | -9/Scraptown | Visited Scrap Suit Storage 2000 | -9/Scraptown | Build established: Skirmisher 2053 | -9/Scraptown | Visited Derelict Rescue Squad 2112 | -9/Scraptown | Visited Junk Repository 2199 | -9/Scraptown | Visited Abandonware Association 2226 | -9/Scraptown | Learned abandonware demo "HACKBUD.EXE" 2226 | -9/Scraptown | Learned abandonware demo "POISON.EXE" 2273 | -9/Scraptown | Visited Research Penetration Think Tank 2321 | -9/Scraptown | Visited Cartography Club 2380 | -9/Scraptown | Found Surveybot 17 Chip 2611 | -9/Scraptown | Learned location of Lower Caves (-6) 2611 | -9/Scraptown | Learned location of Zion (-6) 2611 | -9/Scraptown | Learned location of Warlord (-4) 2611 | -9/Scraptown | Learned 12 Materials zone layouts 2611 | -9/Scraptown | Learned 16 Factory zone layouts 2611 | -9/Scraptown | Learned 20 Factory zone layouts 2611 | -9/Scraptown | Learned 16 Research zone layouts 2611 | -9/Scraptown | Learned 4 Recycling zone layouts 2611 | -9/Scraptown | Learned 16 Upper Caves zone layouts 2611 | -9/Scraptown | Learned 20 Proximity Caves zone layouts 2611 | -9/Scraptown | Learned Research emergency access door positions 2611 | -9/Scraptown | Learned location of 1 exit from Factory 2611 | -9/Scraptown | Learned location of 3 exits from Factory 2611 | -9/Scraptown | Identified exit to Factory 2757 | -9/Scraptown | Met Optimus 2757 | -9/Scraptown | Accepted into 0bPrime 2896 | -9/Scraptown | Entered Factory 2896 | -6/Factory | Evolved 6 slots: Propulsion x2, Utility x3, Weapon x1 2897 | -6/Factory | Identified exit to Factory 2897 | -6/Factory | Identified exit to Lower Caves 2929 | -6/Factory | Build established: Scavenger-Skirmisher 3094 | -6/Factory | Loaded intel: 8 recycling unit locations 3257 | -6/Factory | Learned location of Protoforge (-3) 3462 | -6/Factory | Lost 3 parts (2n1w) 3642 | -6/Factory | Garrison activated, responded to threat 3729 | -6/Factory | Lost 8 parts (1p3n2u2w) 3946 | -6/Factory | Search patrols dispatched 3950 | -6/Factory | Build established: Mutant 4150 | -6/Factory | Lost 3 parts (1p2n) 4180 | -6/Factory | Core integrity fell below 50% 4231 | -6/Factory | Lost 7 parts (1p4n2u) 4232 | -6/Factory | Core integrity fell below 20% 4276 | -6/Factory | Destroyed by X-67 Chaingunner with Minigun Last Messages --------------- Acquired Adv. Melee Analysis Suite. Acquired Adv. ECM Suite. Terminal disabled. Triggered Stasis Trap. A bubble of rippling energy engulfs the area. Field strength at 94. Field strength at 81. Field strength at 75. Surveybot 17 Chip destroyed. Field strength at 50. Field strength at 44. Field strength at 31. Field strength at 25. Field strength at 19. Stasis field depleted. X-67 Chaingunner overheating. Acquired Prototype Flight Unit. Identified Biomechanical Wings. Acquired Adv. Weight Redist. System. Acquired Imp. Gravmag System. Map ----- +----------------------------------------------------+ | """ #? ## ! ## ## ## ?? ? | | """ #??## ## """ ## ## " "?" ? | | """ ## ## ## """ ## """ ## " " " ? | | """ ## + """ ## """ ## """ ## " " " # | | """ ##### """ ## ## """?## ! " " " # | | """ ##?## """ ######+####? ?## " " " # | | ##?## ### ###+##### ^ " " " # | | """ #######+####### " " " # | | """ " " " + | | """ ^ = " " " # | | """ H # | | """ #######+####### # | | """ ?### ### ########### #### # | | """ ???#"" ##### #########???# #??# # | | ?###"" ##?## #??#?#####??# #??# # | | ??##""" ##?## ###?#?# ###?# #??# # | | #?##""" #???# ##??#### ## ##?# # | | ?#?#""" ] ##??# #?####"""""!"""#?# # | | ###### ?## #???# ### ]!![ ### # | | #??# ?## ##### ###"" ! " ! | | " #??#???+ #??## #?#"Y ! " | | " #??#???######/#######Y #?#""" %! " | | " #??# ###### ####### #?# | " = | | " #??# x #?# " ! ! | | " #??#?######## #?# # *! | | " #??#????????# @#?# ! # | | " #??#????????#x ## + | | #??#????????# ####### ### # | | +##??#??????###+####### #?# #####+### | | #???#?????## # #?# ! #??? ? | | #???#?#????# + #?##############??? """ | | #???#??????# # #??????????????????""""" | | ###?#??????# """"""" + #??????????????????""""" | | #?#??????# """"""" #####?????????????????? | | ###??????# """"""" #????#????????????????? """ | | " ??????# """"""" #??????????????????????""""? | | ###??????# #??????????????????????""""? | | #????????###########??????????????????????????? | | ####?????????????????????????????????????????????? | | ?????????????????????????????????????????????????? | | | | | | | | | | | | | | | | | | | | | +----------------------------------------------------+ Best States ------------- Heat Dissipation 38 Energy Generation 17 Energy Capacity 300 Matter Stores 300 Matter Capacity 300 Sight Range 22 Robot Scan Range 16 Terrain Scan Range 16 Terrain Scan Density 1210 Additional Mass Support 9 Evasion (%) 62 Targeting Accuracy 12 Kinecelleration 30 Item Schematics ----------------- None Robot Schematics ------------------ None Fabricated ------------ Nothing Repaired ---------- Nothing Studied --------- Imp. Ion Engine | -9/Materials | Hacked Alien Tech Used ----------------- None Achievements -------------- Civilization 2243 DATA ERROR: Steam Global Achievement% Heavy Suspicion I Laugh At Your Crits Item+ Link The Feds Organ Harvest Overwhelming Spot Them First Suspicious There's More Where That Came From You May Approach The Wall Challenges ------------ None Game ------ Seed BraceMultitargetingNullifier Manual? 0 Play Time 00:45:57 Cumulative 270.1 hours Start 2025.11.02 @ 09:49:25 End 2025.11.02 @ 10:38:16 Sessions 3 Manual Loads 0 Difficulty Rogue Special Mode None Game No. 516 Rogue 514 Adventurer 2 Explorer 0 Win Type - Total 16 Types 11/0/1/3/1/0/0/0/0/0 Lore% 74 Gallery% 63 Achievement% 34 Wizard Run 0 Options --------- Layout 0 ASCII 0 Keyboard 1 Movement Numpad Keybinds 1 Fullscreen 1 Font 24/Smallcaps Map View 76x50 Zoom Use 0% Tactical HUD 1 Map Filters NONE Filters NONE Steam 1 RUN: eebd7788-5bd3-4704-8a5e-4df237ff3d01